fUST/lending_fUST_20240121
["ID","MTS","AMOUNT","RATE_DAILY","PERIOD"]
[312320462,1705771858520,-500.0,0.00041917,31]
[312320463,1705771858529,-500.0,0.00041917,31]
[312320464,1705771858538,-16367.75,0.00041917,31]
[312320465,1705771858548,-500.0,0.00041917,31]
[312320466,1705771858701,-500.0,0.00041917,31]
[312320467,1705771858711,-866.48,0.00041917,31]
[312320468,1705771858721,-1235.66,0.00041917,31]
[312320469,1705771858731,-8056.49,0.00041917,31]
[312320470,1705771858740,-500.0,0.00041917,31]
[312320471,1705771858750,-500.0,0.00041917,31]
[312320472,1705771858766,-500.0,0.00041917,31]
[312320473,1705771858787,-545.43991384,0.00041917,31]
[312320474,1705771858799,-500.0,0.00041917,31]
[312320475,1705771858809,-6257.57,0.00041917,31]
[312320476,1705771858820,-1009.53,0.00041917,7]
[312320477,1705771858829,-1684.52,0.00041917,31]
[312320478,1705771858839,-8470.71,0.00041917,31]
[312320479,1705771858848,-500.0,0.00041917,31]
[312320480,1705771858858,-500.0,0.00041917,31]
[312320481,1705771858867,-289.40030582,0.00041917,31]
[312320482,1705771858882,-2358.56,0.00041917,31]
[312320483,1705771858892,-500.0,0.00041917,31]
[312320484,1705771858902,-500.0,0.00041917,31]
[312320485,1705771858911,-500.0,0.00041917,31]
[312320486,1705771858920,-1730.17,0.00041917,31]
[312320487,1705771858931,-500.0,0.00041917,31]
[312320488,1705771858941,-500.0,0.00041917,31]
[312320489,1705771858951,-500.0,0.00041917,31]
[312320490,1705771858961,-500.0,0.00041917,31]
[312320491,1705771858970,-500.0,0.00041917,31]
[312320492,1705771858980,-500.0,0.00041917,31]
[312320493,1705771858990,-1140.46,0.00041917,31]
[312320494,1705771859000,-500.0,0.00041917,31]
[312320495,1705771859010,-500.0,0.00041917,31]
[312320496,1705771859020,-500.0,0.00041917,31]
[312320497,1705771859029,-500.0,0.00041917,31]
[312320498,1705771859038,-534.13,0.00041917,31]
[312320499,1705771859048,-500.0,0.00041917,31]
[312320500,1705771859057,-500.0,0.00041917,31]
[312320501,1705771859066,-1000.0,0.00041917,2]
[312320502,1705771859077,-500.0,0.00041917,31]
[312320503,1705771859086,-500.0,0.00041917,31]
[312320504,1705771859096,-500.0,0.00041917,31]
[312320505,1705771859105,-500.0,0.00041917,31]
[312320506,1705771859115,-523.85713939,0.00041917,31]
[312320507,1705771859128,-425.09706663,0.00041917,31]
[312320508,1705771859138,-500.0,0.00041917,31]
[312320509,1705771859148,-899.33,0.00041917,31]
[312320510,1705771859159,-1436.63,0.00041917,31]
[312320511,1705771859168,-1738.97,0.00041917,31]
[312320512,1705771859179,-500.0,0.00041917,7]
[312320513,1705771859188,-1526.22,0.00041917,31]
[312320514,1705771859198,-500.0,0.00041917,31]
[312320515,1705771859207,-685.46,0.00041917,31]
[312320516,1705771859216,-500.0,0.00041917,31]
[312320517,1705771859226,-500.0,0.00041917,31]
[312320518,1705771859235,-468.66660866,0.00041917,31]
[312320519,1705771859244,-500.0,0.00041917,31]
[312320520,1705771859253,-1202.86,0.00041917,31]
[312320521,1705771859262,-500.0,0.00041917,31]
[312320522,1705771859271,-500.0,0.00041917,31]
[312320523,1705771859280,-850.85,0.00041917,31]
[312320524,1705771859290,-500.0,0.00041917,31]
[312320525,1705771859299,-524.05,0.00041917,31]
[312320526,1705771859309,-322.74820093,0.00041985,11]
[312320527,1705771859318,-1000.0,0.00042,42]
[312320528,1705771859327,-6000.0,0.00042,20]
[312320529,1705771859337,-18495.28225007,0.00042,20]
[312320530,1705771859346,-1000.0,0.00042,30]
[312320531,1705771859355,-2000.0,0.00042,15]
[312320532,1705771859365,-1002.675451,0.00042,7]
[312320533,1705771859376,-1002.675451,0.00042,7]
[312320534,1705771859385,-500.0,0.00042095,30]
[312320535,1705771859394,-527.76331947,0.00042095,30]
[312320536,1705771859404,-183.11649673,0.00042095,30]
[312320537,1705771859414,-310.33494301,0.00042095,30]
[312320538,1705771859425,-500.0,0.00042095,30]
[312320539,1705771859434,-500.0,0.00042095,30]
[312320540,1705771859444,-500.0,0.00042095,30]
[312320541,1705771859453,-500.0,0.00042095,30]
[312320542,1705771859463,-227.0851802,0.00042095,30]
[312320543,1705771859474,-500.0,0.00042095,30]
[312320544,1705771859483,-460.26820118,0.00042095,30]
[312320545,1705771859493,-600.0,0.00042095,30]
[312320546,1705771859503,-491.08091208,0.00042095,30]
[312320547,1705771859512,-400.0,0.00042095,30]
[312320548,1705771859521,-500.0,0.00042095,30]
[312320549,1705771859530,-500.0,0.00042095,30]
[312320550,1705771859540,-335.59026343,0.00042095,30]
[312320551,1705771859549,-159.57600549,0.00042172,30]
[312320552,1705771859561,-151.0,0.00042191,7]
[312320553,1705771859570,-151.0,0.00042191,7]
[312320554,1705771859580,-357.313658,0.00042191,7]
[312320555,1705771859589,-357.313658,0.00042191,7]
[312320556,1705771859599,-151.725022,0.00042191,7]
[312320557,1705771859608,-5284.477652,0.00042191,7]
[312320558,1705771859617,-5284.477652,0.00042191,7]
[312320559,1705771859628,-151.0,0.00042191,7]
[312320560,1705771859638,-503.33303702,0.00042191,31]
[312320561,1705771859648,-500.0,0.00042191,7]
[312320562,1705771859658,-500.0,0.00042191,31]
[312320563,1705771859667,-500.0,0.00042191,31]
[312320564,1705771859676,-500.0,0.00042191,7]
[312320565,1705771859686,-500.0,0.00042191,31]
[312320566,1705771859696,-1200.76,0.00042191,31]
[312320567,1705771859705,-500.0,0.00042191,31]
[312320568,1705771859715,-500.0,0.00042191,31]
[312320569,1705771859724,-500.0,0.00042191,31]
[312320570,1705771859733,-500.0,0.00042191,31]
[312320571,1705771859742,-562.83445418,0.00042191,31]
[312320572,1705771859752,-501.92238676,0.00042191,31]
[312320573,1705771859761,-368.52430836,0.00042191,31]
[312320574,1705771859771,-500.0,0.00042191,31]
[312320575,1705771859780,-747.09,0.00042191,31]
[312320576,1705771859789,-500.0,0.00042191,31]
[312320577,1705771859798,-264.3177601,0.00042191,31]
[312320578,1705771859808,-500.0,0.00042191,31]
[312320579,1705771859817,-500.0,0.00042191,31]
[312320580,1705771859826,-667.38,0.00042191,31]
[312320581,1705771859835,-500.0,0.00042191,31]
[312320582,1705771859845,-500.0,0.00042191,31]
[312320583,1705771859854,-521.74,0.00042191,31]
[312320584,1705771859863,-500.0,0.00042191,31]
[312320585,1705771859873,-500.0,0.00042191,31]
[312320586,1705771859883,-596.05976182,0.00042191,31]
[312320587,1705771859892,-1030.96864702,0.00042191,2]
[312320588,1705771859901,-189.69313066,0.00042191,31]
[312320589,1705771859910,-618.39,0.00042191,31]
[312320590,1705771859919,-500.0,0.00042191,31]
[312320591,1705771859928,-721.31,0.00042191,31]
[312320592,1705771859936,-500.0,0.00042191,31]
[312320593,1705771859946,-500.0,0.00042191,31]
[312320594,1705771859955,-263.72771691,0.00042191,31]
[312320595,1705771859965,-500.0,0.00042191,31]
[312320596,1705771859974,-204.93856378,0.00042191,31]
[312320597,1705771859983,-583.96,0.00042191,31]
[312320598,1705771859993,-500.0,0.00042191,31]
[312320599,1705771860002,-500.0,0.00042191,31]
[312320600,1705771860011,-500.0,0.00042191,31]
[312320601,1705771860020,-500.0,0.00042191,31]
[312320602,1705771860029,-500.0,0.00042191,14]
[312320603,1705771860039,-708.55,0.00042191,31]
[312320604,1705771860048,-500.0,0.00042191,31]
[312320605,1705771860057,-500.0,0.00042191,31]
[312320606,1705771860067,-500.0,0.00042191,31]
[312320607,1705771860077,-500.0,0.00042191,31]
[312320608,1705771860087,-607.42,0.00042191,31]
[312320609,1705771860096,-500.0,0.00042191,31]
[312320610,1705771860105,-500.0,0.00042191,31]
[312320611,1705771860115,-687.89,0.00042191,31]
[312320612,1705771860124,-500.0,0.00042191,31]
[312320613,1705771860133,-500.0,0.00042191,31]
[312320614,1705771860142,-500.0,0.00042191,31]
[312320615,1705771860152,-688.15,0.00042191,31]
[312320616,1705771860160,-500.0,0.00042191,31]
[312320617,1705771860170,-500.0,0.00042191,31]
[312320618,1705771860178,-500.0,0.00042191,31]
[312320619,1705771860188,-500.0,0.00042191,31]
[312320620,1705771860197,-544.73,0.00042191,31]
[312320621,1705771860207,-500.0,0.00042191,31]
[312320622,1705771860217,-1391.5,0.00042191,31]
[312320623,1705771860226,-512.07583783,0.00042191,31]
[312320624,1705771860236,-500.0,0.00042191,31]
[312320625,1705771860245,-500.0,0.00042191,31]
[312320626,1705771860254,-500.0,0.00042191,31]
[312320627,1705771860263,-493.48617889,0.00042191,31]
[312320628,1705771860273,-520.46,0.00042191,31]
[312320629,1705771860282,-500.0,0.00042191,31]
[312320630,1705771860291,-500.0,0.00042191,31]
[312320631,1705771860301,-500.0,0.00042191,31]
[312320632,1705771860310,-500.0,0.00042191,31]
[312320633,1705771860320,-500.0,0.00042191,31]
[312320634,1705771860329,-568.38,0.00042191,31]
[312320635,1705771860338,-500.0,0.00042191,31]
[312320636,1705771860347,-608.79323839,0.00042191,31]
[312320637,1705771860357,-500.0,0.00042191,31]
[312320638,1705771860367,-500.0,0.00042191,31]
[312320639,1705771860378,-500.0,0.00042191,31]
[312320640,1705771860387,-704.37,0.00042191,31]
[312320641,1705771860397,-150.0,0.00042191,31]
[312320642,1705771860406,-557.88690625,0.00042191,31]
[312320643,1705771860416,-707.0,0.00042191,31]
[312320644,1705771860425,-452.71845285,0.00042191,31]
[312320645,1705771860437,-709.09,0.00042191,31]
[312320646,1705771860450,-711.36,0.00042191,31]
[312320647,1705771860459,-745.04,0.00042191,31]
[312320648,1705771860470,-355.99496282,0.00042191,31]
[312320649,1705771860479,-500.0,0.00042191,31]
[312320650,1705771860489,-500.0,0.00042191,31]
[312320651,1705771860499,-695.1,0.00042191,31]
[312320652,1705771860509,-500.0,0.00042191,31]
[312320653,1705771860519,-593.77,0.00042191,31]
[312320654,1705771860529,-544.34,0.00042191,31]
[312320655,1705771860538,-1201.37,0.00042191,31]
[312320656,1705771860550,-559.1784623,0.00042191,31]
[312320657,1705771860570,-500.0,0.00042191,31]
[312320658,1705771860591,-500.0,0.00042191,31]
[312320659,1705771860609,-500.0,0.00042191,31]
[312320660,1705771860619,-500.0,0.00042191,31]
[312320661,1705771860631,-209.51798523,0.00042191,31]
[312320662,1705771860640,-928.99,0.00042191,31]
[312320663,1705771860650,-704.85,0.00042191,31]
[312320664,1705771860659,-2382.64,0.00042191,31]
[312320665,1705771860669,-500.0,0.00042191,31]
[312320666,1705771860679,-500.0,0.00042191,31]
[312320667,1705771860689,-500.0,0.00042191,31]
[312320668,1705771860699,-500.0,0.00042191,31]
[312320669,1705771860709,-3230.88,0.00042191,31]
[312320670,1705771860718,-1689.43,0.00042191,31]
[312320671,1705771860727,-500.0,0.00042191,31]
[312320672,1705771860737,-500.0,0.00042191,31]
[312320673,1705771860750,-500.0,0.00042191,31]
[312320674,1705771860762,-500.0,0.00042191,31]
[312320675,1705771860774,-500.0,0.00042191,2]
[312320676,1705771860787,-500.0,0.00042191,31]
[312320677,1705771860797,-500.0,0.00042191,31]
[312320678,1705771860806,-1089.14,0.00042191,31]
[312320679,1705771860816,-500.0,0.00042191,31]
[312320680,1705771860826,-500.0,0.00042191,20]
[312320681,1705771860835,-500.0,0.00042191,31]
[312320682,1705771860844,-820.67,0.00042191,31]
[312320683,1705771860854,-848.28,0.00042191,31]
[312320684,1705771860864,-1393.43,0.00042191,31]
[312320685,1705771860875,-1633.61,0.00042191,31]
[312320686,1705771860884,-500.0,0.00042191,31]
[312320687,1705771860893,-500.0,0.00042191,31]
[312320688,1705771860903,-519.55254425,0.00042191,31]
[312320689,1705771860912,-678.24,0.00042191,31]
[312320690,1705771860921,-774.42,0.00042191,31]
[312320691,1705771860930,-494.79005536,0.00042191,31]
[312320692,1705771860940,-500.0,0.00042191,31]
[312320693,1705771860950,-738.56,0.00042191,31]
[312320694,1705771860959,-622.01,0.00042191,31]
[312320695,1705771860969,-500.0,0.00042191,31]
[312320696,1705771861074,-2637.91,0.00042191,31]
[312320697,1705771861084,-2091.45,0.00042191,31]
[312320698,1705771861094,-500.0,0.00042191,31]
[312320699,1705771861103,-500.0,0.00042191,31]
[312320700,1705771861112,-1307.58349378,0.00042191,31]
[312320701,1705771861244,-4423.72650622,0.00042191,31]
[312320702,1705771861252,-614.71707603,0.00042191,14]
[312320703,1705771861375,-4901.07,0.00027397,3]
[312320704,1705771861386,-3319.38818164,0.00027397,3]
[312320705,1705771861398,-620.14389681,0.00027397,3]
[312320706,1705771861583,-191.35107696,0.00018006,2]
[312320707,1705771861592,-154.78330338,0.00027396,2]
[312320708,1705771861602,-1576.40202441,0.00027396,2]
[312320709,1705771861611,-561.46174088,0.00027396,2]
[312320710,1705771861620,-591.39792155,0.00027397,3]
[312320711,1705771861630,-2276.39654398,0.00039,5]
[312320712,1705771861642,-513.80339963,0.00042191,14]
[312320713,1705771861655,-732.54303228,0.00042191,14]
[312320714,1705771861733,-874.04705685,0.00027396,2]
[312320715,1705771861742,-183.8981844,0.00027396,2]
[312320716,1705771861751,-6.84918832,0.000421,30]
[312320717,1705771861763,-568.15081168,0.000421,30]
[312320718,1705771861772,-43.82919032,0.00042191,14]
[312320719,1705771861783,-28305.22730174,0.00042191,14]
[312320720,1705771861793,-731.71,0.00042191,31]
[312320721,1705771861802,-500.0,0.00042191,31]
[312320722,1705771861811,-1111.57,0.00042191,31]
[312320723,1705771861820,-500.0,0.00042191,31]
[312320724,1705771861829,-500.0,0.00042191,31]
[312320725,1705771861838,-2232.2,0.00042191,31]
[312320726,1705771861847,-922.45,0.00042191,31]
[312320727,1705771861856,-1489.44,0.00042191,31]
[312320728,1705771861866,-522.28070155,0.00042191,31]
[312320729,1705771861875,-531.35,0.00042191,31]
[312320730,1705771861884,-500.0,0.00042191,31]
[312320731,1705771861893,-10043.09,0.00042191,31]
[312320732,1705771861902,-500.0,0.00042191,31]
[312320733,1705771861910,-1427.62,0.00042191,31]
[312320734,1705771861919,-500.0,0.00042191,31]
[312320735,1705771861928,-500.0,0.00042191,31]
[312320736,1705771861938,-3336.41,0.00042191,31]
[312320737,1705771861947,-500.0,0.00042191,31]
[312320738,1705771861957,-500.0,0.00042191,31]
[312320739,1705771861966,-500.0,0.00042191,31]
[312320740,1705771861975,-569.73289824,0.00042191,31]
[312320741,1705771861984,-500.0,0.00042191,31]
[312320742,1705771861994,-500.0,0.00042191,31]
[312320743,1705771862004,-16367.75,0.00042191,31]
[312320744,1705771862014,-500.0,0.00042191,31]
[312320745,1705771862024,-500.0,0.00042191,31]
[312320746,1705771862033,-866.48,0.00042191,31]
[312320747,1705771862043,-1235.66,0.00042191,31]
[312320748,1705771862052,-8056.49,0.00042191,31]
[312320749,1705771862062,-500.0,0.00042191,31]
[312320750,1705771862071,-500.0,0.00042191,31]
[312320751,1705771862080,-500.0,0.00042191,31]
[312320752,1705771862089,-500.0,0.00042191,31]
[312320753,1705771862098,-6257.57,0.00042191,31]
[312320754,1705771862107,-1009.53,0.00042191,7]
[312320755,1705771862116,-1684.52,0.00042191,31]
[312320756,1705771862125,-8470.71,0.00042191,31]
[312320757,1705771862134,-500.0,0.00042191,31]
[312320758,1705771862143,-500.0,0.00042191,31]
[312320759,1705771862152,-2358.56,0.00042191,31]
[312320760,1705771862162,-628.80217076,0.00042191,31]
[312320761,1705771862172,-500.0,0.00042191,31]
[312320762,1705771862180,-500.0,0.00042191,31]
[312320763,1705771862190,-1730.17,0.00042191,31]
[312320764,1705771862199,-500.0,0.00042191,31]
[312320765,1705771862209,-500.0,0.00042191,31]
[312320766,1705771862218,-500.0,0.00042191,31]
[312320767,1705771862228,-500.0,0.00042191,31]
[312320768,1705771862237,-500.0,0.00042191,31]
[312320769,1705771862246,-500.0,0.00042191,31]
[312320770,1705771862255,-1140.46,0.00042191,31]
[312320771,1705771862264,-603.90782171,0.00042191,31]
[312320772,1705771862273,-500.0,0.00042191,31]
[312320773,1705771862282,-500.0,0.00042191,31]
[312320774,1705771862292,-500.0,0.00042191,31]
[312320775,1705771862301,-534.13,0.00042191,31]
[312320776,1705771862312,-500.0,0.00042191,31]
[312320777,1705771862329,-500.0,0.00042191,31]
[312320778,1705771862350,-1000.0,0.00042191,2]
[312320779,1705771862359,-500.0,0.00042191,31]
[312320780,1705771862369,-500.0,0.00042191,31]
[312320781,1705771862379,-500.0,0.00042191,31]
[312320782,1705771862388,-500.0,0.00042191,31]
[312320783,1705771862398,-500.0,0.00042191,31]
[312320784,1705771862408,-899.33,0.00042191,31]
[312320785,1705771862417,-541.00007063,0.00042191,31]
[312320786,1705771862431,-895.62992937,0.00042191,31]
[312320787,1705771862441,-1738.97,0.00042191,31]
[312320788,1705771862450,-500.0,0.00042191,7]
[312320789,1705771862461,-1526.22,0.00042191,31]
[312320790,1705771862470,-500.0,0.00042191,31]
[312320791,1705771862479,-685.46,0.00042191,31]
[312320792,1705771862488,-500.0,0.00042191,31]
[312320793,1705771862497,-500.0,0.00042191,31]
[312320794,1705771862508,-500.0,0.00042191,31]
[312320795,1705771862517,-1202.86,0.00042191,31]
[312320796,1705771862527,-500.0,0.00042191,31]
[312320797,1705771862536,-500.0,0.00042191,31]
[312320798,1705771862545,-850.85,0.00042191,31]
[312320799,1705771862556,-500.0,0.00042191,31]
[312320800,1705771862568,-524.05,0.00042191,31]
[312320801,1705771862577,-1382.87710371,0.000422,14]
[312320802,1705771862586,-161.08022687,0.00042367,30]
[312320803,1705771862595,-5284.477652,0.00042465,7]
[312320804,1705771862605,-3896.13457904,0.00042465,7]
[312320832,1705772819094,-312.54432733,0.00020939,2]
[312320835,1705772846089,-1581.76828075,0.00020937,2]
[312320836,1705772846111,-261.05411193,0.00020937,2]
[312320837,1705772846131,-338.88458448,0.00020937,2]
[312320839,1705772850079,-858.59712208,0.00020937,2]
[312320840,1705772850099,-1114.14548175,0.00020938,2]
[312320841,1705772850299,-537.42400065,0.00020939,2]
[312320842,1705772850320,-824.03065617,0.0002094,2]
[312320843,1705772850340,-678.35754423,0.0002094,2]
[312320844,1705772850360,-154.78330338,0.0002094,4]
[312320845,1705772850380,-323.47024933,0.0002094,2]
[312320846,1705772850400,-155.96557472,0.00020941,2]
[312320847,1705772850420,-5892.59541396,0.00020941,2]
[312320937,1705773039106,-154.78330338,0.00020836,2]
[312320939,1705773039116,-185.3441265,0.00020837,2]
[312320941,1705773039125,-1589.56066404,0.00020938,2]
[312320943,1705773039134,-386.79779482,0.00020941,2]
[312320947,1705773039161,-1696.74127337,0.00020941,2]
[312320949,1705773039170,-573.36337574,0.00021,2]
[312320954,1705773039215,-1251.99601159,0.00021,2]
[312320956,1705773039224,-327.38324213,0.00021,2]
[312320958,1705773039233,-168.891698,0.00021191,2]
[312320960,1705773039243,-184.316173,0.00021539,2]
[312320962,1705773039252,-166.666666,0.00021918,2]
[312320964,1705773039261,-293.34385947,0.00022,4]
[312320966,1705773039270,-3966.85623058,0.00022,2]
[312320968,1705773039279,-425.80364021,0.00022,2]
[312320970,1705773039288,-166.666666,0.00022431,2]
[312320972,1705773039297,-166.666666,0.00022944,2]
[312320974,1705773039307,-200.0,0.00023041,7]
[312320976,1705773039315,-166.666666,0.00023456,2]
[312320978,1705773039324,-24900.0,0.00023659,2]
[312320980,1705773039333,-166.666666,0.00023969,2]
[312320982,1705773039342,-4012.5594856,0.00024,2]
[312320984,1705773039351,-166.666666,0.00024482,2]
[312320986,1705773039361,-679.35498147,0.00025,2]
[312320988,1705773039370,-1045.90652664,0.00025,2]
[312320990,1705773039379,-154.78330338,0.00025342,2]
[312320992,1705773039387,-200.0,0.00025345,7]
[312320993,1705773039396,-174.547786,0.00027534,2]
[312320995,1705773039405,-290.16476431,0.00028,2]
[312320997,1705773039414,-165.587085,0.00028767,2]
[312320999,1705773039423,-309.33487517,0.00028798,2]
[312321001,1705773039432,-1197.48170656,0.00029994,2]
[312321003,1705773039441,-678.35754423,0.00029995,2]
[312321005,1705773039450,-282.0,0.0003,2]
[312321007,1705773039459,-238.14143998,0.00031,4]
[312321009,1705773039468,-6550.0,0.0003156,3]
[312321011,1705773039477,-3790.51,0.0003156,3]
[312321013,1705773039485,-6136.58,0.0003156,3]
[312321015,1705773039495,-1896.50062513,0.0003157,5]
[312321017,1705773039504,-14526.63780812,0.0003157,5]
[312321019,1705773039513,-20696.1197147,0.0003157,6]
[312321021,1705773039522,-10067.11887666,0.0003157,6]
[312321023,1705773039531,-5181.4298309,0.00031579,4]
[312321025,1705773039541,-265.38873656,0.00031898,4]
[312321027,1705773039550,-154.78330338,0.00031898,4]
[312321029,1705773039559,-178.69540057,0.00031898,4]
[312321031,1705773039568,-166.94378863,0.00031898,4]
[312321033,1705773039577,-323.65791744,0.00031898,4]
[312321034,1705773039586,-1238.73847102,0.00031898,4]
[312321036,1705773039596,-329.8920866,0.00031898,4]
[312321038,1705773039605,-475.38100568,0.00031898,4]
[312321041,1705773039615,-229.59181648,0.00031898,4]
[312321042,1705773039625,-8435.53516353,0.00031898,4]
[312321044,1705773039634,-2125.21650005,0.00031898,4]
[312321046,1705773039643,-483.28161125,0.00031899,2]
[312321048,1705773039653,-194.47868496,0.00031899,2]
[312321050,1705773039662,-500.0,0.00031899,2]
[312321052,1705773039671,-500.0,0.00031899,2]
[312321054,1705773039680,-500.0,0.00031899,2]
[312321056,1705773039689,-500.0,0.00031899,2]
[312321058,1705773039698,-500.0,0.00031899,2]
[312321060,1705773039707,-500.0,0.00031899,2]
[312321062,1705773039716,-500.0,0.00031899,2]
[312321064,1705773039727,-500.0,0.00031899,2]
[312321066,1705773039736,-501.35415806,0.00031899,2]
[312321068,1705773039747,-243.31068406,0.00031899,2]
[312321070,1705773039756,-500.0,0.00031899,2]
[312321072,1705773039765,-500.0,0.00031899,2]
[312321074,1705773039774,-500.0,0.00031899,2]
[312321076,1705773039783,-500.0,0.00031899,2]
[312321078,1705773039792,-500.0,0.00031899,2]
[312321080,1705773039801,-500.0,0.00031899,2]
[312321082,1705773039810,-500.0,0.00031899,2]
[312321084,1705773039819,-500.0,0.00031899,2]
[312321086,1705773039828,-500.0,0.00031899,2]
[312321088,1705773039837,-597.70039858,0.00031899,2]
[312321090,1705773039846,-500.0,0.00031899,2]
[312321092,1705773039855,-500.0,0.00031899,2]
[312321094,1705773039864,-500.0,0.00031899,2]
[312321097,1705773039873,-500.0,0.00031899,2]
[312321100,1705773039882,-500.0,0.00031899,2]
[312321103,1705773039891,-500.0,0.00031899,2]
[312321104,1705773039900,-500.0,0.00031899,2]
[312321106,1705773039910,-500.0,0.00031899,2]
[312321108,1705773039919,-500.0,0.00031899,2]
[312321110,1705773039929,-500.0,0.00031899,2]
[312321112,1705773039938,-500.0,0.00031899,2]
[312321126,1705773039947,-500.0,0.00031899,2]
[312321128,1705773040072,-199.03084419,0.00031899,2]
[312321130,1705773040082,-500.0,0.00031899,2]
[312321132,1705773040091,-188.50754412,0.000319,3]
[312321134,1705773040100,-74601.85462989,0.000319,2]
[312321272,1705773041586,-3378.85032927,0.00025,2]
[312321709,1705773046554,-1419.51954625,0.00020836,2]
[312321713,1705773046594,-170.04111779,0.00020836,2]
[312321715,1705773046604,-1342.21417361,0.00025,2]
[312321717,1705773046613,-154.78330338,0.00025341,4]
[312321719,1705773046622,-1114.14548175,0.00025342,2]
[312321720,1705773046631,-2370.49814603,0.0003,2]
[312321722,1705773046640,-5113.82,0.0003156,3]
[312321724,1705773046649,-32104.45544456,0.000319,2]
[312321804,1705774232583,-154.78330338,0.00019081,3]
[312321806,1705774232594,-494.47604508,0.00019081,2]
[312321809,1705774232649,-7507.13463406,0.00019081,2]
[312321811,1705774232658,-24900.0,0.00019082,2]
[312321813,1705774232667,-174.547786,0.00019178,2]
[312321814,1705774232678,-198.345251,0.00019286,2]
[312321816,1705774232687,-170.127689,0.00019451,2]
[312321818,1705774232696,-1114.14548175,0.000195,2]
[312321820,1705774232705,-849.96832798,0.0002,2]
[312321822,1705774232714,-678.35754423,0.0002094,2]
[312321824,1705774232724,-1429.55506106,0.00020941,2]
[312321826,1705774232733,-22660.14150878,0.00021,2]
[312321828,1705774232742,-18229.5645094,0.00021,2]
[312321830,1705774232751,-194.2806405,0.00021,2]
[312321832,1705774232760,-9857.00979023,0.00021,2]
[312321834,1705774232769,-327.38324213,0.00021,2]
[312321836,1705774232778,-166.666666,0.00021918,2]
[312321838,1705774232787,-293.34385947,0.00022,4]
[312321840,1705774232796,-3966.85623058,0.00022,2]
[312321841,1705774232805,-10283.28004935,0.00022221,2]
[312321843,1705774232814,-1467.7685682,0.00022266,2]
[312321845,1705774232822,-64.7833741,0.00022431,2]
[312321923,1705774239307,-101.8832919,0.00022431,2]
[312321925,1705774239317,-200.0,0.00022532,7]
[312321927,1705774239327,-166.666666,0.00022944,2]
[312321930,1705774239336,-166.666666,0.00023456,2]
[312321931,1705774239345,-166.666666,0.00023969,2]
[312321934,1705774239355,-166.666666,0.00024482,2]
[312321936,1705774239364,-1739.96410283,0.00025,2]
[312321938,1705774239374,-18876.85769974,0.00025,2]
[312321939,1705774239385,-1001.87795597,0.00025,2]
[312321941,1705774239396,-1045.90652664,0.00025296,2]
[312321944,1705774239405,-9286.90575802,0.00025297,2]
[312321946,1705774239415,-241.17116876,0.00026,2]
[312321948,1705774239424,-4117.14427366,0.00028,2]
[312321949,1705774239434,-312.99786489,0.00028,7]
[312321951,1705774239443,-4012.5594856,0.00028707,2]
[312321954,1705774239453,-165.587085,0.00028767,2]
[312321956,1705774239463,-4342.66,0.00029679,3]
[312321957,1705774239472,-275.40943256,0.00029688,2]
[312321959,1705774239481,-69193.42908732,0.00029689,2]
[312321962,1705774239491,-197895.50695059,0.0002969,2]
[312321964,1705774239500,-470.52459336,0.00029788,2]
[312321966,1705774239510,-520.85901371,0.00029788,2]